bitfinex/quotes_SOLUSD_20220129
["timestamp","ask_amount","ask_price","bid_price","bid_amount"]
[1643415497605,3.00938759,92.146,92.051,6.0]
[1643415497900,45.95838412,92.145,92.06,15.66]
[1643415498302,45.95838412,92.145,92.061,3.01917916]
[1643415498503,45.95838412,92.145,92.101,0.30677384]
[1643415498901,3.00938759,92.197,92.101,0.30677384]
[1643415498902,3.00938759,92.197,92.11,15.66]
[1643415499101,3.00938759,92.24,92.11,15.66]
[1643415499302,2.95669142,92.227,92.111,0.25]
[1643415499600,3.00938759,92.24,92.111,0.25]
[1643415499601,16.285,92.21,92.111,0.25]
[1643415499801,41.4605908,92.209,92.111,0.25]
[1643415500001,44.41728222,92.209,92.111,0.25]
[1643415500205,2.95669142,92.208,92.111,0.25]
[1643415501007,16.287,92.2,92.11,15.66]
[1643415501205,16.287,92.2,92.111,0.25]
[1643415501406,0.25,92.199,92.111,0.25]
[1643415503408,0.25,92.207,92.111,0.25]
[1643415505212,2.95669142,92.208,92.112,2.77605014]
[1643415505416,2.95669142,92.208,92.121,109.4]
[1643415505620,41.4605908,92.209,92.132,2.09278233]
[1643415505815,41.4605908,92.209,92.133,0.25]
[1643415506215,41.4605908,92.209,92.134,2.77605014]
[1643415506415,16.274,92.27,92.141,109.4]
[1643415506617,16.274,92.27,92.151,6.0]
[1643415506816,16.274,92.27,92.152,0.25]
[1643415507018,16.274,92.27,92.16,6.0]
[1643415507217,2.95669142,92.265,92.161,6.0]
[1643415507413,36.58747556,92.264,92.161,6.25]
[1643415508017,36.58747556,92.264,92.17,6.0]
[1643415508214,16.275,92.26,92.171,6.0]
[1643415508416,16.275,92.26,92.171,0.25]
[1643415508817,0.25,92.259,92.171,0.25]
[1643415509220,0.00304865,92.239,92.217,0.31654001]
[1643415509619,0.00304865,92.239,92.23,15.66]
[1643415509818,0.00304865,92.239,92.231,0.25]
[1643415510021,0.00304865,92.239,92.238,23.30767177]
[1643415510421,42.99331915,92.342,92.238,23.55767177]
[1643415510622,42.99331915,92.342,92.25,15.66]
[1643415510820,42.99331915,92.342,92.251,0.25]
[1643415511021,42.99331915,92.342,92.26,6.0]
[1643415511320,42.99331915,92.342,92.27,15.66]
[1643415512321,42.99331915,92.342,92.271,0.25]
[1643415512823,42.99331915,92.342,92.27,15.66]
[1643415513521,16.26,92.34,92.233,48.4924]
[1643415513722,16.26,92.34,92.24,15.66]
[1643415514020,16.26,92.34,92.23,18.6921]
[1643415514221,16.26,92.34,92.236,0.30030452]
[1643415514420,16.26,92.34,92.25,15.66]
[1643415515030,16.26,92.34,92.251,2.76480302]
[1643415515221,16.26,92.34,92.25,15.66]
[1643415515421,16.26,92.34,92.251,0.25]
[1643415516021,42.99331915,92.342,92.251,0.25]
[1643415516221,42.99331915,92.342,92.252,2.76480302]
[1643415516424,42.99331915,92.342,92.253,0.25]
[1643415516822,42.99331915,92.342,92.262,6.0]
[1643415517121,42.99331915,92.342,92.27,15.66]
[1643415517325,42.99331915,92.342,92.271,0.25]
[1643415518526,42.99331915,92.342,92.23,3.0321]
[1643415518727,2.95669142,92.341,92.23,16.0421]
[1643415519024,16.26,92.34,92.23,16.0421]
[1643415519225,16.51,92.34,92.23,16.0421]
[1643415519427,2.95669142,92.339,92.23,16.0421]
[1643415519825,16.261,92.33,92.231,0.25]
[1643415520225,16.261,92.33,92.23,16.0421]
[1643415521028,42.99331915,92.342,92.254,0.31129203]
[1643415521230,3.00938759,92.47,92.278,0.30380259]
[1643415521529,72.2236,92.477,92.324,0.31000929]
[1643415521726,72.2236,92.477,92.364,0.32149924]
[1643415521925,72.2236,92.477,92.36,0.31343187]
[1643415522125,2.95669142,92.472,92.37,0.31043533]
[1643415522327,41.66361588,92.471,92.37,0.31043533]
[1643415522727,2.95669142,92.47,92.37,0.31043533]
[1643415522927,41.66361588,92.471,92.37,0.31043533]
[1643415522928,41.66361588,92.471,92.392,0.30597906]
[1643415523327,41.66361588,92.471,92.372,0.25]
[1643415524136,16.239,92.47,92.371,2.77769303]
[1643415524333,16.239,92.47,92.37,13.01]
[1643415524934,41.66361588,92.471,92.37,13.01]
[1643415524935,2.95669142,92.469,92.37,13.01]
[1643415525135,16.242,92.45,92.351,47.2203]
[1643415525335,16.242,92.45,92.34,13.01]
[1643415525538,2.95669142,92.449,92.34,13.01]
[1643415525836,44.44528639,92.448,92.34,13.01]
[1643415526238,16.247,92.42,92.34,13.01]
[1643415526638,16.247,92.42,92.341,2.77204954]
[1643415526838,44.19528639,92.448,92.341,2.77204954]
[1643415527440,44.19528639,92.448,92.342,0.25]
[1643415527655,0.25,92.447,92.342,0.25]
[1643415527854,3.20669142,92.447,92.341,0.25]
[1643415528054,16.245,92.44,92.341,0.25]
[1643415528456,2.95669142,92.439,92.341,0.25]
[1643415529558,16.245,92.44,92.341,0.25]
[1643415530157,16.245,92.44,92.342,2.77204954]
[1643415530358,16.245,92.44,92.343,0.25]
[1643415531659,16.245,92.44,92.341,0.25]
[1643415533261,0.25,92.439,92.341,0.25]
[1643415534761,0.25,92.439,92.34,13.01]
[1643415534962,0.25,92.439,91.099,0.1]
[1643415534963,16.246,92.43,92.31,16.246]
[1643415535161,16.246,92.43,92.28,128.887]
[1643415535364,2.95669142,92.429,92.28,87.739]
[1643415535563,3.82665902,92.429,92.28,87.739]
[1643415535762,10.20854007,92.428,92.28,87.739]
[1643415536062,35.23518604,92.427,92.28,13.01]
[1643415536266,38.19187746,92.427,92.28,13.01]
[1643415536463,13.01,92.42,92.28,13.01]
[1643415536663,16.253,92.39,92.28,13.01]
[1643415537063,2.95669142,92.389,92.281,0.25]
[1643415537266,40.61349697,92.388,92.28,13.01]
[1643415537464,40.61349697,92.388,92.257,70.7812]
[1643415537665,2.95669142,92.387,92.26,13.01]
[1643415537864,16.256,92.37,92.26,13.01]
[1643415538366,44.07451908,92.369,92.26,13.01]
[1643415538564,44.07451908,92.369,92.26,13.26]
[1643415539566,2.95669142,92.368,92.26,13.26]
[1643415539966,16.258,92.36,92.26,13.26]
[1643415540466,2.95669142,92.359,92.26,13.01]
[1643415540866,44.07451908,92.369,92.26,13.01]
[1643415541068,44.07451908,92.369,92.261,2.75883313]
[1643415541270,44.07451908,92.369,92.27,6.0]
[1643415541470,44.07451908,92.369,92.281,0.30244212]
[1643415541668,44.07451908,92.369,92.281,22.51451874]
[1643415541868,44.07451908,92.369,92.284,65.73]
[1643415542169,16.247,92.44,92.316,0.30204368]
[1643415542667,16.247,92.44,92.317,2.7657085]
[1643415542668,2.95669142,92.439,92.317,2.7657085]
[1643415542869,2.95669142,92.439,92.313,109.4]
[1643415543070,35.59149185,92.438,92.314,24.04321537]
[1643415543471,2.95669142,92.437,92.314,133.44321537]
[1643415544272,16.247,92.43,92.314,133.44321537]
[1643415544473,16.247,92.43,92.314,24.04321537]
[1643415544673,2.95669142,92.429,92.314,24.04321537]
[1643415545872,16.249,92.42,92.314,22.8872]
[1643415546273,2.95669142,92.419,92.314,22.8872]
[1643415546873,35.60480611,92.418,92.314,22.8872]
[1643415547275,2.95669142,92.417,92.314,22.8872]
[1643415547673,2.95669142,92.417,92.29,29.259]
[1643415547874,16.251,92.41,92.29,13.26]
[1643415548076,16.251,92.41,92.29,13.01]
[1643415548275,2.95669142,92.409,92.29,13.26]
[1643415548475,2.95669142,92.409,92.29,13.01]
[1643415548879,10.28808875,92.408,92.29,13.01]
[1643415549277,2.95669142,92.407,92.29,13.01]
[1643415549976,16.254,92.4,92.29,13.01]
[1643415550180,44.27231485,92.399,92.29,13.01]
[1643415550377,47.22900627,92.399,92.29,13.26]
[1643415551078,16.253,92.39,92.29,13.26]
[1643415551878,0.25,92.39,92.29,13.26]
[1643415552079,44.27231485,92.399,92.29,13.26]
[1643415552279,44.27231485,92.399,92.291,19.12513806]
[1643415552679,44.27231485,92.399,92.301,6.0]
[1643415552881,44.27231485,92.399,92.31,13.01]
[1643415553079,44.27231485,92.399,92.311,4.24295393]
[1643415555682,44.27231485,92.399,92.301,6.0]
[1643415555683,2.95669142,92.398,92.25,113.7]
[1643415555882,2.95669142,92.398,92.254,47.8761]
[1643415556084,67.82121334,92.397,92.254,47.8761]
[1643415556282,70.07505616,92.397,92.254,47.8761]
[1643415556482,23.56324758,92.396,92.254,47.8761]
[1643415556686,2.25384282,92.395,92.255,18.80405943]
[1643415556889,2.95669142,92.396,92.256,65.73]
[1643415557084,2.95669142,92.396,92.27,13.01]
[1643415557285,16.252,92.39,92.28,16.252]
[1643415557483,16.252,92.39,92.28,27.462]
[1643415557687,2.95669142,92.389,92.28,11.46]
[1643415558284,16.255,92.37,92.28,11.46]
[1643415558686,38.60020894,92.369,92.281,21.49797429]
[1643415559887,38.60020894,92.369,92.282,109.4]
[1643415560087,38.60020894,92.369,92.281,21.49797429]
[1643415560691,2.95669142,92.398,92.282,65.73]
[1643415560890,3.00938759,92.422,92.291,6.31742172]
[1643415561090,16.25,92.4,92.3,29.258]
[1643415561290,16.25,92.4,92.301,24.4626]
[1643415561491,3.00938759,92.421,92.301,24.4626]
[1643415561689,40.37661905,92.42,92.302,67.6001177]
[1643415561889,40.37661905,92.42,92.311,6.0]
[1643415561890,2.25481161,92.419,92.311,6.0]
[1643415562093,2.25481161,92.419,92.33,16.242]
[1643415562295,0.25,92.42,92.33,39.202]
[1643415562489,0.25,92.42,92.331,23.5789]
[1643415562689,3.00938759,92.434,92.331,23.5789]
[1643415562891,5.26373442,92.439,92.331,23.5789]
[1643415563092,42.38017657,92.435,92.35,16.239]
[1643415563292,2.25434683,92.434,92.35,38.859]
[1643415563492,3.00938759,92.451,92.35,38.859]
[1643415563692,24.2064,92.489,92.36,6.0]
[1643415563693,3.00938759,92.462,92.36,6.0]
[1643415563893,3.00938759,92.462,92.37,13.01]
[1643415564095,3.00938759,92.468,92.37,26.12]
[1643415564295,40.5692064,92.469,92.371,5.53746534]
[1643415564498,2.25332385,92.468,92.371,8.28263589]
[1643415564697,2.25332385,92.468,92.372,2.74517055]
[1643415564899,2.25332385,92.468,92.371,5.53746534]
[1643415565095,3.00938759,92.461,92.371,5.53746534]
[1643415565796,2.25332385,92.46,92.371,5.53746534]
[1643415565996,3.00938759,92.464,92.371,5.53746534]
[1643415566298,2.25332385,92.463,92.38,16.234]
[1643415566497,2.25332385,92.468,92.38,16.234]
[1643415566695,2.25332385,92.468,92.381,112.14517055]
[1643415566896,0.5456586,92.473,92.418,0.30440845]
[1643415567298,0.5456586,92.473,92.418,3.049579]
[1643415567496,0.5456586,92.473,92.418,0.30440845]
[1643415567695,33.26173921,92.472,92.411,17.04935825]
[1643415568497,33.26173921,92.472,92.401,23.249]
[1643415568918,44.21173921,92.472,92.368,2.74517055]
[1643415569222,2.95669142,92.471,92.37,13.01]
[1643415569418,2.95669142,92.471,92.36,13.01]
[1643415569618,2.95669142,92.471,92.35,13.01]
[1643415569822,18.45265942,92.47,92.35,13.01]
[1643415570020,2.21565942,92.469,92.32,13.01]
[1643415570221,2.21565942,92.469,92.315,24.9271]
[1643415570222,3.00938759,92.46,92.315,24.9271]
[1643415570420,13.01,92.45,92.315,24.9271]
[1643415570619,35.87478869,92.449,92.309,1.41727569]
[1643415570819,16.25,92.43,92.309,1.41727569]
[1643415571021,35.77962606,92.429,92.309,1.41727569]
[1643415571223,35.77962606,92.429,92.31,2.74517055]
[1643415571625,35.77962606,92.429,92.309,1.41727569]
[1643415571921,35.77962606,92.429,92.31,2.74517055]
[1643415572121,35.77962606,92.429,92.311,24.4823]
[1643415573125,16.247,92.41,92.312,2.74517055]
[1643415573426,29.257,92.41,92.306,483.65340461]
[1643415574023,33.78040256,92.409,92.307,21.8221371]
[1643415574225,16.253,92.38,92.307,21.8221371]
[1643415574424,36.03054134,92.379,92.307,21.8221371]
[1643415574624,36.03054134,92.379,92.308,2.74517055]
[1643415577425,36.03054134,92.379,92.308,12.07517055]
[1643415577629,2.01716845,92.409,92.309,65.73]
[1643415577826,2.01716845,92.378,92.321,65.73]
[1643415578027,3.00938759,92.457,92.349,0.30712628]
[1643415578228,2.06025463,92.472,92.36,13.01]
[1643415578429,47.7609,92.487,92.376,0.31589589]
[1643415578727,43.39673355,92.471,92.376,9.71589589]
[1643415578926,43.39673355,92.471,92.377,21.33607799]
[1643415579528,2.95669142,92.47,92.377,21.33607799]
[1643415579729,2.95669142,92.47,92.37,16.486]
[1643415579929,43.39673355,92.471,92.37,16.486]
[1643415580132,43.39673355,92.471,92.38,0.30849085]
[1643415580529,43.39673355,92.471,92.407,0.31710411]
[1643415580929,0.04293268,92.488,92.408,2.74517055]
[1643415581932,0.04293268,92.488,92.4,13.26]
[1643415582133,37.26416286,92.472,92.4,13.01]
[1643415582331,37.26416286,92.472,92.4,13.26]
[1643415582530,37.26416286,92.472,92.4,0.25]
[1643415583333,37.26416286,92.472,92.391,6.0]
[1643415586834,1.49436067,92.47,92.372,23.3721]
[1643415587035,17.73236067,92.47,92.35,13.01]
[1643415587234,17.73236067,92.47,92.32,13.01]
[1643415587235,1.49436067,92.466,92.32,13.01]
[1643415587433,1.49436067,92.452,92.32,13.01]
[1643415587633,35.21702324,92.444,92.325,17.71337889]
[1643415587835,1.49436067,92.443,92.325,17.71337889]
[1643415588133,16.244,92.44,92.325,17.71337889]
[1643415588340,16.244,92.44,92.313,16.71853765]
[1643415588534,17.73836067,92.44,92.307,2.73958129]
[1643415588738,1.49436067,92.437,92.325,2.73958129]
[1643415588936,1.49436067,92.441,92.325,2.73958129]
[1643415589135,1.49436067,92.441,92.33,13.01]
[1643415589335,1.49436067,92.441,92.33,29.253]
[1643415589535,1.49436067,92.433,92.331,2.73958129]
[1643415589736,1.49436067,92.433,92.326,21.39248704]
[1643415590037,1.49436067,92.428,92.326,21.39248704]
[1643415590237,1.49436067,92.426,92.326,21.39248704]
[1643415590440,1.49436067,92.428,92.326,21.39248704]
[1643415590639,45.17872909,92.43,92.33,13.01]
[1643415590836,45.17872909,92.43,92.336,6.0]
[1643415591037,45.17872909,92.43,92.35,13.01]
[1643415591437,45.17872909,92.43,92.35,13.26]
[1643415591638,45.17872909,92.43,92.351,2.73958129]
[1643415591837,1.49436067,92.451,92.351,12.12958129]
[1643415592037,1.49436067,92.451,92.353,65.73]
[1643415592337,23.82233268,92.488,92.361,6.0]
[1643415592338,1.49436067,92.458,92.361,6.0]
[1643415592536,0.04293268,92.488,92.352,112.13958129]
[1643415592537,1.49436067,92.465,92.37,13.01]
[1643415592739,1.49436067,92.468,92.37,22.56]
[1643415592940,41.14076774,92.467,92.371,24.13206833]
[1643415593139,41.14076774,92.467,92.38,16.233]
[1643415593338,41.14076774,92.467,92.38,0.25]
[1643415593537,1.49436067,92.464,92.38,0.25]
[1643415593738,1.49436067,92.464,92.381,2.73958129]
[1643415593939,1.49436067,92.464,92.381,12.75958129]
[1643415594139,42.63512841,92.467,92.381,10.02]
[1643415594338,3.05232027,92.488,92.372,23.368]
[1643415594541,12.13194052,92.675,92.521,50.0]
[1643415594741,1.11783273,92.654,92.594,21.76162929]
[1643415594940,354.38632391,92.697,92.594,21.76162929]
[1643415594941,353.98632391,92.697,92.609,0.31125528]
[1643415595163,353.98632391,92.697,92.62,13.01]
[1643415595342,353.98632391,92.697,92.645,0.31676003]
[1643415595544,23.3152,92.836,92.68,162.65]
[1643415595742,23.3152,92.836,92.69,13.01]
[1643415596342,35.59164901,92.835,92.697,0.31977594]
[1643415596545,35.59164901,92.835,92.726,0.3081232]
[1643415596742,35.59164901,92.835,92.74,13.01]
[1643415596943,23.3152,92.836,92.75,13.01]
[1643415597143,23.3152,92.836,92.75,4.27683079]
[1643415597342,23.3152,92.836,92.74,4.9603154]
[1643415597543,23.3152,92.836,92.613,5.0]
[1643415597743,16.181,92.83,92.68,13.01]
[1643415597944,4.3362786,92.829,92.68,13.01]
[1643415598342,4.3362786,92.829,92.681,0.25]
[1643415598542,4.3362786,92.829,92.681,13.82]
[1643415598743,4.3362786,92.829,92.691,40.11866377]
[1643415598942,4.3362786,92.829,92.7,13.01]
[1643415599144,4.3362786,92.829,92.7,29.188]
[1643415599342,4.3362786,92.829,92.701,0.25]
[1643415599943,16.0817,92.979,92.747,0.31781061]
[1643415600146,73.1787,92.965,92.748,0.30343037]
[1643415600347,2.95669142,92.858,92.748,0.30343037]
[1643415600546,2.95669142,92.858,92.703,77.9029]
[1643415600547,16.178,92.84,92.68,13.01]
[1643415600750,13.01,92.83,92.631,9.63268893]
[1643415601149,2.95669142,92.829,92.63,13.01]
[1643415601347,21.12749492,92.829,92.64,16.188]
[1643415601550,16.191,92.78,92.65,13.01]
[1643415601847,13.33661131,92.779,92.65,13.01]
[1643415602047,29.9666544,92.779,92.673,0.30608438]
[1643415602248,29.9666544,92.779,92.68,13.01]
[1643415603253,29.9666544,92.779,92.667,0.32306847]
[1643415603452,29.9666544,92.779,92.686,0.32059973]
[1643415603654,29.9666544,92.779,92.68,29.191]
[1643415603953,29.9666544,92.779,92.681,0.25]
[1643415604152,29.9666544,92.779,92.695,0.31119243]
[1643415604451,29.9666544,92.779,92.696,10.35643]
[1643415604653,29.9666544,92.779,92.71,13.01]
[1643415604851,29.9666544,92.779,92.72,13.01]
[1643415605056,16.17,92.87,92.766,0.31685299]
[1643415605253,107.82,93.01,92.794,0.78125]
[1643415605455,95.5123,93.069,92.837,0.31973041]
[1643415605652,95.5123,93.069,92.853,5.0]
[1643415605856,13.01,93.05,92.874,0.32474702]
[1643415606052,41.49086784,93.017,92.874,0.32474702]
[1643415606252,41.49086784,93.017,92.874,0.25]
[1643415606464,41.49086784,93.017,92.874,9.36]
[1643415606465,16.148,93.01,92.874,9.36]
[1643415606652,41.49086784,93.017,92.877,0.31652125]
[1643415607055,41.49086784,93.017,92.904,0.31334315]
[1643415607253,41.49086784,93.017,92.929,0.30670574]
[1643415607452,41.49086784,93.017,92.93,19.50051857]
[1643415607654,41.49086784,93.017,92.929,11.64]
[1643415607951,41.49086784,93.017,92.93,16.387]
[1643415608151,41.49086784,93.017,92.9,13.01]
[1643415608352,41.49086784,93.017,92.86,13.01]
[1643415608554,13.01,93.0,92.809,0.31484646]
[1643415608752,2.95669142,92.986,92.81,13.01]
[1643415608951,38.70277813,92.985,92.811,3.59531495]
[1643415609151,13.01,92.98,92.811,3.59531495]
[1643415609651,2.95669142,92.979,92.83,16.155]
[1643415609852,2.95669142,92.979,92.833,0.32185977]
[1643415610052,16.153,92.98,92.859,0.31296568]
[1643415610254,352.42435508,93.269,93.026,0.78125]
[1643415610754,71.9711,93.259,93.036,0.30247327]
[1643415610954,24.2735,93.259,93.073,0.31091357]
[1643415611255,34.79621094,93.201,93.073,10.52]
[1643415611454,34.79621094,93.201,93.08,13.01]
[1643415611653,34.79621094,93.201,93.074,10.56437]
[1643415612054,15.811,93.178,93.097,0.31873424]
[1643415612254,46.3180812,93.177,93.097,10.14873424]
[1643415612454,46.3180812,93.177,93.074,0.25]
[1643415612858,46.3180812,93.177,93.07,0.32287177]
[1643415613055,46.3180812,93.177,93.08,13.01]
[1643415613256,46.3180812,93.177,93.081,0.25]
[1643415613757,46.3180812,93.177,93.082,10.31348]
[1643415614156,46.3180812,93.177,93.09,16.106]
[1643415614356,46.3180812,93.177,93.091,0.25]
[1643415614559,162.65,93.31,93.091,0.25]
[1643415614560,15.9125,93.391,93.092,58.0]
[1643415614758,58.9675472,93.326,93.182,0.78125]
[1643415614957,0.5456586,93.567,93.182,0.78125]
[1643415614958,15.9015,93.454,93.192,0.31310917]
[1643415615157,16.079,93.38,93.26,16.078]
[1643415615356,16.079,93.38,93.24,53.592]
[1643415615357,0.1,93.379,93.191,0.25]
[1643415615556,2.95669142,93.379,93.182,0.78125]
[1643415615756,30.0,93.378,93.2,5.0]
[1643415615958,0.1,93.377,93.17,13.01]
[1643415616158,16.091,93.35,93.18,13.01]
[1643415616360,0.1,93.349,93.19,13.01]
[1643415616560,25.15534752,93.359,93.201,39.12311727]
[1643415616859,0.1,93.358,93.201,47.83311727]
[1643415617059,0.1,93.358,93.211,6.0]
[1643415617262,0.1,93.358,93.26,16.079]
[1643415617458,0.1,93.358,93.212,28.2939413]
[1643415617683,0.1,93.358,93.212,6.0]
[1643415618059,0.1,93.358,93.22,13.01]
[1643415618260,0.1,93.358,93.23,13.01]
[1643415618462,0.1,93.358,93.24,16.083]
[1643415618661,4.23086651,93.359,93.25,13.01]
[1643415618865,4.23086651,93.359,93.251,0.25]
[1643415619063,22.5824,93.439,93.26,6.0]
[1643415619263,22.5824,93.439,93.27,13.01]
[1643415619662,16.076,93.39,93.28,6.0]
[1643415619863,13.01,93.5,93.28,6.0]
[1643415619864,0.31390536,93.534,93.291,82.0]
[1643415620064,42.32209273,93.65,93.431,0.78125]
[1643415620369,41.82209273,93.65,93.54,5.58916035]
[1643415620567,41.82209273,93.65,93.55,13.01]
[1643415620770,4.6577,93.649,93.553,5.0]
[1643415620963,0.5456586,93.75,93.64,162.65]
[1643415621166,0.5456586,93.75,93.66,162.65]
[1643415621364,0.5456586,93.75,93.67,13.01]
[1643415621574,0.5456586,93.75,93.66,13.01]
[1643415621766,0.5456586,93.75,93.67,13.01]
[1643415621964,0.5456586,93.75,93.66,13.01]
[1643415622164,0.5456586,93.75,93.63,53.369]
[1643415622165,0.5456586,93.75,93.63,14.68]
[1643415622364,0.5456586,93.75,93.66,13.01]
[1643415622667,0.5456586,93.75,93.66,9.21]
[1643415623063,33.36713058,93.724,93.66,9.21]
[1643415623264,33.36713058,93.724,93.67,13.01]
[1643415623463,33.36713058,93.724,93.61,162.65]
[1643415623664,33.36713058,93.724,93.651,11.11]
[1643415623864,0.1,93.723,93.66,13.01]
[1643415624068,0.1,93.723,93.67,13.01]
[1643415624264,0.1,93.723,93.67,29.019]
[1643415624465,0.1,93.723,93.67,3.7011916]
[1643415624666,0.5456586,93.75,93.67,3.7011916]
[1643415624864,37.0,93.749,93.62,162.65]
[1643415625065,0.5456586,93.75,93.62,53.376]
[1643415626090,6.0,93.74,93.62,53.376]
[1643415626289,6.0,93.74,93.621,41.00361216]
[1643415626489,0.5456586,93.75,93.621,52.96361216]
[1643415626693,0.5456586,93.75,93.64,16.014]
[1643415626892,0.5456586,93.75,93.64,26.334]
[1643415627093,0.5456586,93.75,93.65,13.01]
[1643415627290,0.5456586,93.75,93.651,0.25]
[1643415627492,0.5456586,93.75,93.657,0.32064964]
[1643415627690,0.5456586,93.75,93.67,13.01]
[1643415627891,0.5456586,93.75,93.67,27.258]
[1643415628491,0.5456586,93.75,93.67,11.25]
[1643415629093,0.5456586,93.75,93.65,16.01]
[1643415629296,0.25,93.749,93.65,16.01]
[1643415629694,0.25,93.749,93.63,13.01]
[1643415629895,3.53769142,93.725,93.542,98.07340249]
[1643415630095,3.53769142,93.725,93.621,5.369729]
[1643415630296,0.25,93.724,93.621,0.009729]
[1643415630801,0.32241412,93.678,93.47,3.0]
[1643415630996,0.32241412,93.678,93.373,5.0]
[1643415630997,0.32419923,93.664,93.373,5.0]
[1643415631196,0.32419923,93.664,93.31,76.4038]
[1643415631197,0.32289701,93.635,93.333,5.0]
[1643415631497,13.01,93.63,93.371,3.83644]
[1643415631696,3.0,93.526,93.371,3.83644]
[1643415631902,3.0,93.526,93.422,36.23289766]
[1643415632196,16.053,93.52,93.422,36.23289766]
[1643415632396,0.1,93.519,93.422,36.23289766]
[1643415632597,0.1,93.599,93.422,36.23289766]
[1643415632800,0.25,93.591,93.43,13.01]
[1643415632998,0.1,93.619,93.43,13.01]
[1643415633200,0.1,93.627,93.423,65.73]
[1643415633403,42.57249773,93.702,93.422,36.23289766]
[1643415633404,3.0,93.634,93.432,6.0]
[1643415633599,3.0,93.634,93.431,15.69779216]
[1643415633600,2.95669142,93.665,93.442,35.04707021]
[1643415633802,21.69493896,93.641,93.443,0.25]
[1643415634001,13.01,93.63,93.442,35.04707021]
[1643415634203,10.45664,93.628,93.442,35.04707021]
[1643415634512,16.049,93.58,93.442,35.04707021]
[1643415634699,3.0,93.571,93.442,35.04707021]
[1643415634899,0.1,93.579,93.442,35.04707021]
[1643415635100,3.0,93.564,93.442,35.04707021]
[1643415635301,3.0,93.564,93.443,0.25]
[1643415635701,53.487,93.58,93.443,0.25]
[1643415635902,0.1,93.579,93.443,0.25]
[1643415636105,13.01,93.58,93.431,0.25]
[1643415636303,0.1,93.579,93.4,13.01]
[1643415636503,0.1,93.579,93.38,109.4]
[1643415636504,0.1,93.579,93.41,6.0]
[1643415636706,0.1,93.579,93.337,65.73]
[1643415636707,0.1,93.579,93.39,6.0]
[1643415636907,0.1,93.579,93.391,39.92916027]
[1643415637115,16.047,93.56,93.401,6.0]
[1643415637309,13.01,93.55,93.401,6.0]
[1643415637508,0.1,93.549,93.401,6.0]
[1643415637708,0.1,93.569,93.401,6.0]
[1643415637908,3.0,93.586,93.411,0.31072077]
[1643415638111,3.0,93.586,93.42,6.0]
[1643415638308,3.0,93.583,93.42,19.01]
[1643415638510,3.0,93.583,93.421,6.0]
[1643415638709,3.0,93.558,93.43,6.0]
[1643415638910,0.1,93.579,93.431,33.02988537]
[1643415639108,0.1,93.646,93.441,6.0]
[1643415639309,0.1,93.703,93.441,6.0]
[1643415639513,10.45664,93.646,93.45,13.01]
[1643415639713,0.1,93.645,93.451,36.8927413]
[1643415639910,0.1,93.645,93.46,6.0]
[1643415640110,3.0,93.681,93.462,6.0]
[1643415640310,0.1,93.71,93.47,13.01]
[1643415640512,3.0,93.666,93.472,175.13]
[1643415640712,3.0,93.666,93.481,65.73]
[1643415640914,0.1,93.699,93.5,0.32338938]
[1643415641111,0.581,93.725,93.503,5.0]
[1643415641112,0.1,93.71,93.503,5.0]
[1643415641313,3.0,93.707,93.507,65.73]
[1643415641515,3.0,93.707,93.504,10.51694]
[1643415641516,3.0,93.707,93.517,6.0]
[1643415641716,3.0,93.707,93.518,65.73]
[1643415641913,6.0,93.697,93.55,16.03]
[1643415642113,3.0,93.707,93.551,153.3171267]